{"text_format":"1","workbook":"xlsx","n_sheets":1,"sheets":["Escalier"],"not_rendered":{"charts":0,"images":1,"macros":1,"external_links":0,"defined_names":23,"comments":0,"pivot_tables":0},"unopened":[],"bounds":{"document_bytes":16777216,"sheet_cells":100000,"rows_first":2000,"rows_last":500,"rows_between":2000,"halvings":0,"cell_chars":16384,"cell_head_chars":4096},"cells_cut":0,"cells_raw":0,"read":"whole","date_system":"1900"}

{"sheet":"Escalier","index":0,"n_rows":35,"n_cols":18,"rows_kept":35,"cut":false,"hidden":false,"merged":[[10,12,10,13],[27,12,27,14],[0,0,0,17],[2,0,2,17],[3,0,3,17],[21,9,24,9],[21,6,24,6],[21,5,24,5],[14,7,15,7],[11,7,12,7],[11,6,14,6]]}
["CALCUL D'UN ESCALIER QUART TOURNANT"]
[null,null,null,null,null,null,null,null,null,null,null,null,null,null,null,null,null,"Lionel Ponnelle"]
["Remarque : Entrez vos dimensions dans les cases grises. Vous pouvez modifier la \"Valeur du pas\" entre 56 et 65 cm en cliquant sur les 2 boutons flèches."]
["Vous pouvez ajuster le \"Reculement de départ\" en utilisant les boutons [+ 1 cm], [- 1 cm ],  [+ 1 mm] ou [-1 mm], dans le cas où la position du pied de l'escalier est limitée par une porte ou un passage. Toutefois la \"Longueur réelle de la 1ère volée\" ne peut pas dépasser la \"Longueur maximale de la 1ère volée\". Les résultats sont affichés dans les cases bleues et sur le plan. Les cases jaunes indiquent des cotes secondaires."]
[]
[{"$f":"IF(Long_trémie_1<Largeur+Rayon,\"ERREUR : la trémie est trop courte !\",\"Longueur de la trémie (volée basse)\")","v":"Longueur de la trémie (volée basse)"},200]
["Marche palière :",5]
[{"$f":"IF(Long_trémie_2<Largeur+Rayon,\"ERREUR : la trémie est trop courte !\",\"Longueur de la trémie (volée haute)\")","v":"Longueur de la trémie (volée haute)"},200,null,null,null,null,null,null,null,null,null,{"$f":"Long_trémie_1","v":200}]
["Rayon du jour escalier :",0]
["Largeur de l'escalier :",90]
[null,null,null,null,null,null,null,null,null,null,null,null,{"$f":"Marche_palière","v":5}]
["Hauteur de l'escalier :",280,null,null,null,null,{"$f":"B8","v":200},{"$f":"Rayon","v":0}]
["Hauteur sous plafond :",250]
[{"$f":"IF(Echappée<190,\"ATTENTION : l'échappée est faible !\",\"Hauteur de l'échappée :\")","v":"Hauteur de l'échappée :"},200]
[null,null,null,null,null,null,null,{"$f":"Largeur","v":90}]
["Valeur du pas de foulée :",60]
["Valeur réelle calculée :",{"$f":"2*H_marche+Giron","v":60.52},null,null,null,null,null,null,null,null,null,null,null,null,null,null,null,"Ligne de foulée à la trémie"]
[null,null,null,null,null,null,null,null,null,null,null,{"$f":"Long_trémie_1-Largeur-Rayon","v":110},"+",{"$f":"PI()/2*(IF(Largeur>100,50,Largeur/2)+Rayon)","v":70.685834705770347},"+",{"$f":"Long_trémie_2-Largeur-Rayon","v":110},"=",{"$f":"Volée_1+Volée_2+Tournant","v":290.68583470577033}]
["Longueur maximale de la 1ère volée :",{"$f":"Longueur_maxi-Volée_2-Tournant+Largeur+Rayon","v":257.11416529422968}]
[]
[{"$f":"IF(Longueur_reelle>Longueur_maxi,\"ERREUR : valeur trop élevée !\",\"Longueur réelle de la 1ère volée :\")","v":"Longueur réelle de la 1ère volée :"},{"$f":"Longueur_reelle-Volée_2-Tournant+Largeur+Rayon","v":257.11416529422968}]
[null,null,null,null,null,{"$f":"B12","v":280},{"$f":"B13","v":250},null,null,{"$f":"B14","v":200}]
[]
["Reculement de départ :",{"$f":"Long_reelle_v1-Giron+Marche_palière","v":238.92749862756301}]
[]
[]
["Nombre de marches :",{"$f":"ROUND((2*Hauteur+Longueur_reelle)/Pas_foulée,0)","v":15}]
["(valeur non arrondie) :",{"$f":"(2*Hauteur+Longueur_reelle)/Pas_foulée","v":15.129999999999999},null,null,null,null,null,null,null,null,null,null,{"$f":"B34","v":38.836164066415435}]
[]
["Hauteur de marche :",{"$f":"IF(N_marches>0,Hauteur/N_marches,0)","v":18.666666666666668},null,null,null,null,null,null,null,null,null,{"$f":"Long_1ere_marche","v":238.92749862756301}]
["Giron de la marche :",{"$f":"IF(N_marches>0,Longueur_reelle/N_marches,0)","v":23.186666666666667},null,null,null,null,null,null,null,null,null,{"$f":"Long_reelle_v1","v":257.11416529422968}]
[null,null,null,null,null,null,null,null,null,null,null,{"$f":"Long_maxi_v1","v":257.11416529422968}]
["Longueur réelle ligne de foulée :",347.8,null,null,null,null,null,null,null,null,null,{"$f":"Longueur_reelle","v":347.8}]
["Pente de l'escalier :",{"$f":"DEGREES(ATAN(Hauteur/Longueur_reelle))","v":38.836164066415435},null,null,null,null,null,null,null,null,null,{"$f":"ROUND((Foulée-Marche_palière)*Hauteur/(Hauteur-HSP+Echappée),1)","v":347.8}]
[null,null,null,null,null,null,null,null,null,null,null,null,null,null,null,null,null,"mise à jour le 15-08-2017"]